Cogmind - Beta 13 @@@ ROGUE MODE // 2024.04.18 @ 15:06:58 Player: KIWA Result: Destroyed by XP-CP1(R) with Subdweller Beam Cannon Performance ------------- Evolutions (0) 0 Regions Visited (2) 400 Robots Destroyed (18) 90 Value Destroyed (549) 549 Prototype IDs (1) 20 Alien Tech Used (0) 0 Bonus (0) 0 TOTAL SCORE: 1059 Bonus ------- None Cogmind --------- Core Integrity 0/250 Matter 204/300 Energy 146/250 System Corruption 0% Temperature Warm (194) Movement Core (100) Ox1 Location -10/Subcaves Parts ------- > --- POWER (1) -------- Ion Engine > --- PROPULSION (2) --- (None) > --- UTILITY (2) ------ (None) > --- WEAPON (2) ------- (None) > --- INVENTORY (5) ---- Structural Scanner Mining Laser Peak State ------------ > --- POWER ------------ (None) > --- PROPULSION ------- Aluminum Leg Aluminum Leg > --- UTILITY ---------- Medium Storage Unit Power Bank > --- WEAPON ----------- Light Assault Rifle > --- INVENTORY -------- Ion Engine Wheel Wheel Structural Scanner Subdweller Optics Scrap Shield Mining Laser Scrap Shield Fragment [Rating: 14] Favorites ----------- Power Ion Engine Engine Ion Engine Propulsion Light Treads Treads Light Treads Leg Aluminum Leg Utility Structural Scanner Device Structural Scanner Storage Medium Storage Unit Protection Scrap Shield Weapon Assault Rifle Ballistic Gun Assault Rifle Launcher Grenade Launcher Special Weapon Mining Laser Build | -11 -10 -10 ------- Run | Yrd Mat Sub Slots Evolved . | . . . Power . | . . . Propulsion . | . . . Utility . | . . . Weapon . | . . . Parts Attached 19 | 2 10 7 Power 2 | . 1 1 Engine 2 | . 1 1 Core . | . . . Reactor . | . . . Propulsion 4 | 2 . 2 Treads 2 | 2 . . Leg 2 | . . 2 Wheel . | . . . Hover . | . . . Flight . | . . . Utility 5 | . 3 2 Device 2 | . 1 1 Storage 2 | . 2 . Processor . | . . . Hackware . | . . . Protection 1 | . . 1 Artifact . | . . . Weapon 8 | . 6 2 Energy Gun . | . . . Energy Cannon . | . . . Ballistic Gun 3 | . 2 1 Ballistic Cannon . | . . . Launcher 3 | . 2 1 Special Weapon 2 | . 2 . Impact Weapon . | . . . Slashing Weapon . | . . . Piercing Weapon . | . . . Special Melee Weapon . | . . . Unidentified Prototypes 1 | . . 1 Parts Lost 11 | . 3 8 Power 2 | . 1 1 Propulsion 4 | . . 4 Utility 1 | . . 1 Weapon 4 | . 2 2 Highest Loss Streak 6 | . 3 6 To Critical Strikes . | . . . Average Slot Usage (%) 97 | . 98 95 Engine 13 | . 13 13 Treads 24 | . 28 5 Leg 3 | . . 21 Device 13 | . 13 13 Storage 13 | . 14 13 Ballistic Gun 18 | . 19 12 Launcher 7 | . 7 12 Naked Turns . | . . . Heaviest Build 91 | 13 91 23 Greatest Support 40 | 40 40 40 Greatest Overweight (x) 2 | . 2 2 Average Overweight (x) . | . . . Largest Inventory Capacity 25 | 8 25 10 Average Capacity 15 | 8 16 9 Most Carried 10 | 6 8 10 Average Carried 6 | 6 6 8 Final Capacity 10 | 8 10 5 Final Carried 7 | 6 7 2 Class Distribution -------------------- 100% | Mutant Dominant Class ---------------- Mutant | -10/Materials Mutant | -10/Subcaves Resources | -11 -10 -10 ----------- Run | Yrd Mat Sub Matter Collected 611 | 200 268 143 Remotely . | . . . Salvage Created 566 | . 399 167 Parts 31 | . 26 5 Haulers Intercepted 1 | . 1 . Recyclers Shooed . | . . . Parts Field Recycled . | . . . Retrieved Matter . | . . . Parts Self-Destructed 11 | . . 11 Prevented . | . . . Kills | -11 -10 -10 ------- Run | Yrd Mat Sub Combat Hostiles Destroyed 13 | . 6 7 Guns 8 | . 6 2 AOE 5 | . . 5 Classes Destroyed 7 | . 6 1 Builder 1 | . 1 . Hauler 1 | . 1 . Mechanic 1 | . 1 . Operator 1 | . 1 . Watcher 1 | . 1 . Grunt 6 | . 6 . Subdweller 7 | . . 7 Best Kill Streak 6 | . 4 6 Combat Bots Only 6 | . 2 6 Max Kills in Single Turn 2 | . 2 2 Gunslinging . | . . . Exploded 2 | . . 2 Melee . | . . . Uniques/NPCs Destroyed . | . . . Combat | -11 -10 -10 -------- Run | Yrd Mat Sub Hostile Shots Fired 102 | . 46 56 Missed 28 | . 6 22 Damage Taken 1531 | . 541 990 Core 271 | . 39 232 Absorbed by Shields . | . . . Core Remaining (%) 100 | 100 . . Volleys Fired 75 | . 60 15 Largest 2 | . 2 2 Hottest 200 | . 200 50 Shots Fired 124 | . 98 26 Gun 109 | . 94 15 Cannon . | . . . Launcher 11 | . . 11 Special 4 | . 4 . Kinetic 109 | . 94 15 Thermal 4 | . 4 . Explosive 11 | . . 11 Electromagnetic . | . . . Robot Hit Streak 19 | . 13 19 Robot Miss Streak 3 | . 3 1 Penetration Max . | . . . Secondary Targets . | . . . Shots Hit Robots 83 | . 62 21 Core Hits 36 | . 22 14 Critical Kills . | . . . Critical Parts Destroyed . | . . . Critical Strikes . | . . . Melee Attacks . | . . . Impact . | . . . Slashing . | . . . Piercing . | . . . Sneak Attacks . | . . . Combat Hostiles . | . . . Follow-up Attacks . | . . . Damage Inflicted 1702 | . 810 892 Guns 883 | . 799 84 Cannons . | . . . Explosions 808 | . . 808 Melee . | . . . Ramming 11 | . 11 . Kinetic 883 | . 799 84 Thermal . | . . . Explosive 808 | . . 808 Electromagnetic . | . . . Impact . | . . . Slashing . | . . . Piercing . | . . . Highest Corruption . | . . . Average Corruption . | . . . Corruption Purged . | . . . Corruption Blocked . | . . . Overload Shots . | . . . Overflow Damage . | . . . Projectiles . | . . . Explosions . | . . . Melee . | . . . Knockbacks . | . . . Impact . | . . . Kinetic . | . . . Secondary . | . . . Self-Inflicted Damage 8 | . . 8 Shots 1 | . . 1 Rammed 4 | . 4 . Targets Rammed 4 | . 4 . Kicked . | . . . Crushed . | . . . Highest Temperature 278 | . 112 278 Average Temperature 77 | . 42 158 Received Heat Transfer 1057 | . 309 748 Siege Activations . | . . . Robots Corrupted . | . . . Combat Hostiles . | . . . Parts Fried . | . . . Impact Corruptions . | . . . Robots Melted . | . . . Combat Hostiles . | . . . Parts Melted . | . . . Heat Transferred . | . . . Parts Sabotaged . | . . . Parts Stolen . | . . . Parts Stripped . | . . . Power Chain Reactions . | . . . Alert | -11 -10 -10 ------- Run | Yrd Mat Sub Peak Influence 91 | . 91 . Initial . | . . . Average 37 | . 37 . Maximum Alert Level . | . . . Low Security (%) 100 | 100 100 . Level 1 . | . . . Level 2 . | . . . Level 3 . | . . . Level 4 . | . . . Level 5 . | . . . High Security . | . . . Max Security . | . . . Squads Dispatched 1 | . 1 . Investigation . | . . . Extermination . | . . . Reinforcement 1 | . 1 . Assault . | . . . Garrison . | . . . Intercept . | . . . Searches Triggered . | . . . Construction Impeded . | . . . Haulers Reinforced . | . . . Active Scanning Responses . | . . . Cargo Convoy Interrupts . | . . . Stealth | -11 -10 -10 --------- Run | Yrd Mat Sub Distress Signals 3 | . 3 . Communications Jammed . | . . . Distress Signals . | . . . Times Spotted 34 | . 20 14 Peak Tracking Total 6 | . 3 6 Tactical Retreats . | . . . Traps | -11 -10 -10 ------- Run | Yrd Mat Sub Traps Triggered . | . . . Indirectly . | . . . Trap Hack Attempts . | . . . Triggered . | . . . Disarmed . | . . . Reprogrammed . | . . . Reused . | . . . Traps Extracted . | . . . Installed . | . . . Triggered . | . . . Machines | -11 -10 -10 ---------- Run | Yrd Mat Sub Machines Disabled . | . . . Max in Single Turn . | . . . Machines Repaired . | . . . Machines Dismantled . | . . . Machines Sabotaged . | . . . Overloaded Fab Kills . | . . . Hacking | -11 -10 -10 --------- Run | Yrd Mat Sub Machines Accessed 4 | . 4 . Terminals 4 | . 4 . Fabricators . | . . . Repair Stations . | . . . Recycling Units . | . . . Scanalyzers . | . . . Garrison Access . | . . . Total Hacks 10 | . 10 . Successful 6 | . 6 . Failed 4 | . 4 . Catastrophic 1 | . 1 . Database Lockouts . | . . . Manual . | . . . Terminals 10 | . 10 . Fabricators . | . . . Repair Stations . | . . . Recycling Units . | . . . Scanalyzers . | . . . Garrison Access . | . . . Terminal Hacks 6 | . 6 . Record 1 | . 1 . Locate Traps 2 | . 2 . Maintenance Status 1 | . 1 . Transport Status 1 | . 1 . Hauler Manifests 1 | . 1 . Fabricator Hacks . | . . . Repair Station Hacks . | . . . Recycling Unit Hacks . | . . . Scanalyzer . | . . . Garrison Access Hacks . | . . . Unauthorized Hacks . | . . . Terminals . | . . . Fabricators . | . . . Repair Stations . | . . . Recycling Units . | . . . Scanalyzers . | . . . Garrison Access . | . . . Data Cores Recovered . | . . . Used . | . . . Hacking Detections 3 | . 3 . Full Trace Events . | . . . Feedback Events . | . . . Feedback Blocked . | . . . Robot Schematics Acquired . | . . . Robots Built . | . . . Authchips . | . . . Time . | . . . Total Robot Build Rating . | . . . Part Schematics Acquired . | . . . Parts Built . | . . . Authchips . | . . . Time . | . . . Total Part Build Rating . | . . . Parts Repaired . | . . . Time . | . . . Parts Recycled . | . . . Recycled Matter . | . . . Retrieved Matter . | . . . Retrieved Components . | . . . Parts Scanalyzed . | . . . Part Schematics Acquired . | . . . Parts Damaged . | . . . Bothacking | -11 -10 -10 ------------ Run | Yrd Mat Sub Used RIF Installer . | . . . Robots Hacked . | . . . Non-combat . | . . . Combat . | . . . Robot Hacks Applied . | . . . Relay Couplers Released . | . . . Fabnet Peak Effective % . | . . . Robots Rewired . | . . . Allies Hacked . | . . . Hacks Repelled . | . . . Allies | -11 -10 -10 -------- Run | Yrd Mat Sub Total Allies . | . . . Largest Group . | . . . Highest-Rated Group . | . . . Highest-Rated Ally . | . . . Total Orders . | . . . Ally Attacks . | . . . Total Damage . | . . . Kills . | . . . Allies Corrupted . | . . . Allies Melted . | . . . Intel | -11 -10 -10 ------- Run | Yrd Mat Sub Robot Analysis Total . | . . . Derelict Logs Recovered 1 | . . 1 Drone Launches . | . . . Drone Recoveries . | . . . Exploration | -11 -10 -10 ------------- Run | Yrd Mat Sub Turns Passed 1355 | 3 1127 225 Spaces Moved 539 | 1 410 128 Core . | . . . Treads 430 | 1 410 19 Legs 109 | . . 109 Wheels . | . . . Hover . | . . . Flight . | . . . Fastest Speed 120 | 160 160 120 Average Speed 188 | 160 206 129 Slowest Speed 320 | 160 320 260 Overloaded Moves . | . . . Propulsion Burnouts . | . . . Robots Hopped . | . . . Cave-ins Triggered . | . . . Exploration Rate (%) 19 | 2 43 14 Regions Visited 2 Branch Regions 1 Pre-discovered Areas 1 | . . 1 Known Exits Taken . | . . . Unknown Exits Taken 2 | 1 1 . Scrap Searched 1 | . . 1 Spaces Dug 1 | . 1 . Terrain Destroyed 39 | . 2 37 Melee . | . . . Projectile 2 | . 2 . AOE 37 | . . 37 Terrain Rammed . | . . . Walls Destroyed . | . . . Machines Disabled . | . . . Actions | -11 -10 -10 --------- Run | Yrd Mat Sub Total 747 | 2 579 166 Wait 90 | . 87 3 Move 537 | . 409 128 Hop . | . . . Pick Up 14 | . 7 7 Fast Attach . | . . . Attach 8 | . 4 4 Detach . | . . . Swap 11 | 2 6 3 Drop 8 | . 2 6 Fire 75 | . 60 15 Melee . | . . . Ram . | . . . Kick . | . . . Crush 4 | . 4 . Escape Stasis . | . . . Rewire . | . . . Trap . | . . . Miscellaneous . | . . . Route ------- -11/Scrapyard -10/Materials (discovered 4 exits: [*Mat x2] / [*Min] / [*Sub]) -10/Subcaves History --------- Turn | Location | Event 4 | -11/Scrapyard | Discovered new exit (range 0) 4 | -11/Scrapyard | Entered Materials 300 | -10/Materials | Build established: Mutant 921 | -10/Materials | Discovered new exit (range 13) 937 | -10/Materials | Lost 3 parts (1p2w) 955 | -10/Materials | Discovered new exit (range 16) 992 | -10/Materials | Discovered new exit (range 5) 1014 | -10/Materials | Discovered new exit (range 14) 1131 | -10/Materials | Entered Subcaves 1195 | -10/Subcaves | Found Prototype Device 1215 | -10/Subcaves | Learned location of Storage (-8) 1332 | -10/Subcaves | Ambushed by swarm of Subdwellers 1338 | -10/Subcaves | Identified Power Bank 1340 | -10/Subcaves | Attached Power Bank, gained temporary slots: Power x3 1343 | -10/Subcaves | Core integrity fell below 50% 1355 | -10/Subcaves | Core integrity fell below 20% 1356 | -10/Subcaves | Destroyed by XP-CP1(R) with Subdweller Beam Cannon Last Messages --------------- Machinery. 01338_ Identified Power Bank. 01339_ TL-FJC(R) emerges from the Twisted Machinery. 01340_ Core temporarily expanded with Power slot. 01340_ 5D-I7R(R) destroyed. 01340_ Lgt. Assault Rifle destroyed. 01340_ Aluminum Leg destroyed. 01342_ XP-CP1(R) emerges from the Twisted Machinery. 01342_ Critical hit (Meltdown: +250). 01343_ NE-NAG(R) emerges from the Twisted Machinery. 01343_ Dropped Med. Storage Unit. 01344_ Discarded Power Bank. 01344_ Temporary Power slot lost. 01352_ Scrap Shield destroyed. 01352_ Critical hit (Meltdown: +300). 01354_ Aluminum Leg destroyed. Map ----- +----------------------------------------------------+ | # "" "?????????????????? ?????????????????????? | | ## ????????????????????? ?????????????????????? | | #### ????????????????????? ##???????????????? | | ### ????????????????????? ######???????????????? | | ##### ####????????????????? ## ##???????????????? | | ### #####???????????????? ?????????????????? | | ### # ############???????? #????????????????? | | #### ############??????# ##????????????????? | | # ## #### ###??????## ###???????????????? | | # ## ##??????# ###???????????????? | | ### ###??????## ##???????????????? | | ### ## ###?####### #####?????????????? | | ## ## ### ########### ######????????????? | | ###### ##### #####??????????? | | ####### ## ####??????????? | | ######### ## ##??????????? | | ######## ### ###??????????? | | ##??## ## #### ###??????????? | | ####### ####### ##### ###??????????? | | ###### #####;## ##### ##??????????? | | ???? ## #########;; ;;##### ##??????????? | | ???? #######?#; ;;;### ##??????????? | | ???? # ??????????#; ;; ;## ###??????????? | | ????###??????????##; ;## ###??????????? | | ???? ##?????????###; RR ###??????????? | | ????????????????##; @= R&&""##??????????? | | ????????????????## !!= RR%" ##??????????? | | ????????????????#;; & R *####??????????? | | ????????????????###; ###???????????? | | ?????????????????###;; ##????????????? | | ??????????????????## ###????????????? | | ?????????????????? #; ; ;### #####????????????? | | ?????????????????? #;;; ## ####?????????????? | | ????????????????? ## "" # ###???????????????? | | ???????????????? "" ? ##???????????????? | | ?????????????? ? "" ? ????????????????? | | ?????????????? """ ? ???????????????? | | ?????????????? ### "??" ???????????????? | | ???????????????? ?###"??"" ##????????????? | | ????????????????????### ????" ##????????????? | | ????????????????????????????"#### ##????????????? | | ????????????????????????????##### ???????????????? | | ?????????????????????????????????????????????????? | | ?????????????????????????????????????????????????? | | ?????????????????????????????????????????????????? | | ?????????????????????????????????????????????????? | | ?????????????????????????????????????????????????? | | ?????????????????????????????????????????????????? | | ?????????????????????????????????????????????????? | | ?????????????????????????????????????????????????? | +----------------------------------------------------+ Best States ------------- Heat Dissipation 25 Energy Generation 10 Energy Capacity 250 Matter Stores 300 Matter Capacity 300 Sight Range 16 Terrain Scan Density 10 Armor Coverage 800 Evasion (%) 55 Recoil Reduction 2 Item Schematics ----------------- None Robot Schematics ------------------ None Fabricated ------------ Nothing Alien Tech Used ----------------- None Achievements -------------- None Challenges ------------ None Game ------ Seed BombardmentTacticalUnit Manual? 0 Play Time 00:15:37 Cumulative 13.5 hours Start 2024.04.18 @ 14:52:43 End 2024.04.18 @ 15:06:58 Sessions 1 Manual Loads 0 Difficulty Rogue Special Mode None Game No. 28 Rogue 28 Adventurer 0 Explorer 0 Win Type - Total 0 Types 0/0/0/0/0/0/0/0/0 Lore% 16 Gallery% 24 Achievement% 19 Wizard Run 0 Options --------- Layout 1 ASCII 0 Keyboard 0 Movement Mouse Keybinds 0 Fullscreen 2 Font 48/Smallcaps Map View 50x35 Zoom Use 0% Tactical HUD 1 Map Filters NONE Filters NONE Steam 1 RUN: cf6322dc-547f-4101-b968-db3c56b27899